[Event "72nd RUS-ch Higher League 2019"]
[Site "Yaroslavl"]
[Date "2019.06.28"]
[Round "2.16"]
[White "Nozdrachev, Vladislav"]
[Black "Rakhmanov, Aleksandr"]
[Result "1/2-1/2"]
[ECO "C24"]
[WhiteElo "2481"]
[BlackElo "2615"]
[Annotator "RC"]
[PlyCount "199"]
[EventDate "2019.06.27"]
[EventType "swiss"]
[EventCountry "RUS"]
[SourceTitle "playchess.com"]
[Source "ChessBase"]
[SourceQuality "1"]
[TimeControl "40/5400+30:1800+30"]

1. e4 {[%emt 0:00:00]} e5 {[%emt 0:00:00]} 2. Bc4 {[%emt 0:00:28]} Nf6 {[%emt 0:00:00]} 3. d3 {[%emt 0:00:04]} c6 {[%emt 0:00:00]} 4. Nf3 {[%emt 0:00:04]} d5 {[%emt 0:00:05]} 5. Bb3 {[%emt 0:00:09]} Bb4+ {[%emt 0:00:22]} 6. Bd2 {[%emt 0:02:12]} Bxd2+ {[%emt 0:00:06]} 7. Nbxd2 {[%emt 0:00:05]} a5 {[%emt 0:00:45]} 8. c3 {[%emt 0:01:36]} Nbd7 {[%emt 0:04:11]} 9. O-O {[%emt 0:02:31]} O-O {[%emt 0:10:13]} 10. exd5 {[%emt 0:10:51]} cxd5 {[%emt 0:00:38]} 11. Re1 {[%emt 0:00:55]} Qc7 {[%emt 0:01:09]} 12. Nf1 {[%emt 0:00:53]} Re8 {[%emt 0:05:10]} 13. Ne3 {[%emt 0:03:54]} Nb6 {[%emt 0:01:14]} 14. a4 {[%emt 0:04:46]} Bg4 {[%emt 0:09:06]} 15. h3 {[%emt 0:11:27]} Bh5 {[%emt 0:04:40]} 16. g4 {[%emt 0:00:16]} Bg6 {[%emt 0:00:13]} 17. d4 {[%emt 0:00:07]} exd4 {[%emt 0:01:38]} 18. cxd4 {[%emt 0:00:12]} Qf4 {[%emt 0:05:25]} 19. Ne5 {[%emt 0:03:14]} Ne4 {[%emt 0:26:37]} 20. Qf3 {[%emt 0:06:24]} Qh6 {[%emt 0:03:01]} 21. Nxd5 {[%emt 0:03:11]} Ng5 {[%emt 0:13:27]} 22. Qg3 {[%emt 0:02:34]} Nxh3+ {[%emt 0:06:29]} 23. Kf1 {[%emt 0:00:33]} Nxd5 {[%emt 0:01:49]} 24. Bxd5 {[%emt 0:00:05]} Rad8 {[%emt 0:00:53]} 25. Bg2 {[%emt 0:00:43]} Ng5 {[%emt 0:00:24]} 26. Qf4 {[%emt 0:06:34]} f6 {[%emt 0:03:33]} 27. Nxg6 {[%emt 0:04:55]} Qxg6 {[%emt 0:00:06]} 28. Bxb7 {[%emt 0:01:22]} Qd3+ {[%emt 0:01:35]} 29. Kg2 {[%emt 0:00:06]} Rxe1 {[%emt 0:01:05]} 30. Rxe1 {[%emt 0:00:05]} Qxd4 {[%emt 0:00:30]} 31. Qxd4 {[%emt 0:04:13]} Rxd4 {[%emt 0:00:01]} 32. Kg3 {[%emt 0:00:07]} Kf7 {[%emt 0:00:26]} 33. Bc6 {[%emt 0:02:30]} g6 {[%emt 0:01:03]} 34. Re3 {[%emt 0:03:15]} Ne6 {[%emt 0:00:32]} 35. Rb3 {[%emt 0:02:06]} Ke7 {[%emt 0:00:22]} 36. Rb7+ {[%emt 0:01:36]} Kd6 {[%emt 0:00:02]} 37. Bb5 {[%emt 0:00:06]} h5 {[%emt 0:00:24]} 38. Rd7+ {[%emt 0:01:28]} Ke5 {[%emt 0:01:12]} 39. gxh5 {[%emt 0:00:22]} gxh5 {[%emt 0:00:11]} 40. Ra7 {[%emt 0:00:00]} h4+ {[%emt 0:00:00]} 41. Kh2 {[%emt 0:03:18]} Rd2 {[%emt 0:04:07]} 42. Rxa5 {[%emt 0:00:42]} Ng5 {[%emt 0:07:39]} 43. Bc6+ {[%emt 0:06:13]} Kd6 {[%emt 0:04:16]} 44. Rf5 {[%emt 0:02:33]} Kxc6 {[%emt 0:00:44]} 45. Rxf6+ {[%emt 0:00:04]} Kd7 {[%emt 0:00:34]} 46. Rf5 {[%emt 0:00:35]} Ne4 {[%emt 0:01:43]} 47. Kh3 {[%emt 0:00:14]} Nxf2+ {[%emt 0:00:29]} 48. Kxh4 {[%emt 0:00:06]} Rxb2 {[%emt 0:00:04]} 49. Kg3 {[%emt 0:00:07]} Ne4+ {[%emt 0:00:05]} 50. Kf4 {[%emt 0:00:04]} Nd6 {[%emt 0:00:05]} 51. Rd5 {[%emt 0:00:11]} Rb4+ {[%emt 0:00:15]} 52. Ke3 {[%emt 0:00:06]} Ke6 {[%emt 0:00:15]} 53. Rh5 {[%emt 0:00:22]} Nc4+ {[%emt 0:00:17]} 54. Kd3 {[%emt 0:00:14]} Ne5+ {[%emt 0:00:13]} 55. Kc3 {[%emt 0:00:06]} Rxa4 {[%emt 0:00:33]} 56. Rh8 {[%emt 0:00:06]} Kd5 {[%emt 0:00:10]} 57. Rd8+ {[%emt 0:00:08]} Ke4 {[%emt 0:00:05]} 58. Rh8 {[%emt 0:00:06]} Rc4+ {[%emt 0:00:20]} 59. Kb3 {[%emt 0:00:14]} Rc7 {[%emt 0:00:07]} 60. Rh4+ {[%emt 0:00:06]} Ke3 {[%emt 0:00:13]} 61. Rh3+ {[%emt 0:00:08]} Nf3 {[%emt 0:00:28]} 62. Kb4 {[%emt 0:00:11]} Ke4 {[%emt 0:00:07]} 63. Rh8 {[%emt 0:00:15]} Ng5 {[%emt 0:00:39]} 64. Re8+ {[%emt 0:00:36]} Kd5 {[%emt 0:00:11]} 65. Rd8+ {[%emt 0:00:04]} Ke5 {[%emt 0:00:02]} 66. Re8+ {[%emt 0:00:17]} Ne6 {[%emt 0:00:03]} 67. Rh8 {[%emt 0:00:04]} Nf4 {[%emt 0:00:13]} 68. Re8+ {[%emt 0:00:10]} Kd4 {[%emt 0:00:05]} 69. Rd8+ {[%emt 0:00:42]} Nd5+ {[%emt 0:01:17]} 70. Kb3 {[%emt 0:00:06]} Rc5 {[%emt 0:00:20]} 71. Rb8 {[%emt 0:02:57]} Kd3 {[%emt 0:01:21]} 72. Rd8 {[%emt 0:00:22]} Rb5+ {[%emt 0:00:54]} 73. Ka4 {[%emt 0:00:06]} Rb1 {[%emt 0:00:25]} 74. Ka5 {[%emt 0:00:58]} Kd4 {[%emt 0:01:09]} 75. Rh8 {[%emt 0:00:20]} Nc7 {[%emt 0:01:56]} 76. Rh7 {[%emt 0:01:15]} Ne6 {[%emt 0:03:23]} 77. Rh4+ {[%emt 0:01:07]} Kc5 {[%emt 0:00:22]} 78. Rh5+ {[%emt 0:02:02]} Kc4 {[%emt 0:00:25]} 79. Rh4+ {[%emt 0:00:08]} Nd4 {[%emt 0:00:23]} 80. Rh8 {[%emt 0:00:09]} Nc6+ {[%emt 0:03:24]} 81. Ka6 {[%emt 0:00:11]} Nb8+ {[%emt 0:00:38]} 82. Ka5 {[%emt 0:00:56]} Nc6+ {[%emt 0:02:16]} 83. Ka6 {[%emt 0:00:11]} Ne7 {[%emt 0:00:40]} 84. Rh2 {[%emt 0:02:50]} Nd5 {[%emt 0:00:47]} 85. Rc2+ {[%emt 0:02:23]} Nc3 {[%emt 0:00:12]} 86. Rh2 {[%emt 0:00:12]} Kc5 {[%emt 0:00:29]} 87. Rh8 {[%emt 0:00:32]} Nd5 {[%emt 0:06:09]} 88. Rc8+ {[%emt 0:00:49]} Kd6 {[%emt 0:00:39]} 89. Ka5 {[%emt 0:01:11]} Nb6 {[%emt 0:00:33]} 90. Rh8 {[%emt 0:00:27]} Kc5 {[%emt 0:01:09]} 91. Rh5+ {[%emt 0:00:10]} Nd5 {[%emt 0:00:07]} 92. Ka4 {[%emt 0:00:04]} Rb8 {[%emt 0:01:02]} 93. Rg5 {[%emt 0:00:29]} Kc4 {[%emt 0:00:31]} 94. Rg4+ {[%emt 0:00:07]} Kd3 {[%emt 0:00:06]} 95. Rg3+ {[%emt 0:00:54]} Ne3 {[%emt 0:00:04]} 96. Rh3 {[%emt 0:00:19]} Rb7 {[%emt 0:01:04]} 97. Ka5 {[%emt 0:00:29]} Kd4 {[%emt 0:00:29]} 98. Rh4+ {[%emt 0:00:05]} Kc5 {[%emt 0:00:23]} 99. Rh5+ {[%emt 0:00:05]} Nd5 {[%emt 0:00:35]} 100. Ka4 {[%emt 0:00:05]} 1/2-1/2

[Event "72nd RUS-ch Higher League 2019"]
[Site "Yaroslavl"]
[Date "2019.06.28"]
[Round "2.19"]
[White "Pridorozhni, Aleksei"]
[Black "Murzin, Volodar"]
[Result "1/2-1/2"]
[ECO "B12"]
[WhiteElo "2588"]
[BlackElo "2418"]
[Annotator "ChessBase"]
[PlyCount "103"]
[EventDate "2019.06.27"]
[EventType "swiss"]
[EventCountry "RUS"]
[SourceTitle "playchess.com"]
[Source "ChessBase"]
[SourceQuality "1"]
[TimeControl "40/5400+30:1800+30"]

1. e4 {[%emt 0:00:00]} c6 {[%emt 0:00:00]} 2. d4 {[%emt 0:00:00]} d5 {[%emt 0:00:11]} 3. e5 {[%emt 0:00:01]} Bf5 {[%emt 0:00:10]} 4. h4 {[%emt 0:00:10]} h5 {[%emt 0:01:13]} 5. Bd3 {[%emt 0:00:15]} Bxd3 {[%emt 0:01:42]} 6. Qxd3 {[%emt 0:00:06]} Qa5+ {[%emt 0:04:24]} 7. Nd2 {[%emt 0:00:41]} Qa6 {[%emt 0:03:51]} 8. e6 {[%emt 0:01:01]} Qxd3 {[%emt 0:00:09]} 9. exf7+ {[%emt 0:00:06]} Kxf7 {[%emt 0:00:05]} 10. cxd3 {[%emt 0:00:04]} Nh6 {[%emt 0:04:44]} 11. Ndf3 {[%emt 0:02:00]} Nf5 {[%emt 0:09:36]} 12. Nh3 {[%emt 0:13:31]} Nd7 {[%emt 0:01:11]} 13. Nhg5+ {[%emt 0:21:34]} Kg8 {[%emt 0:01:52]} 14. Bf4 {[%emt 0:00:53]} Nxd4 {[%emt 0:05:16]} 15. Nxd4 {[%emt 0:00:47]} e5 {[%emt 0:01:03]} 16. Nde6 {[%emt 0:00:09]} exf4 {[%emt 0:00:19]} 17. Nxf4 {[%emt 0:06:05]} Re8+ {[%emt 0:01:54]} 18. Kf1 {[%emt 0:03:14]} Bd6 {[%emt 0:06:32]} 19. Ngh3 {[%emt 0:00:41]} Rh6 {[%emt 0:03:34]} 20. g3 {[%emt 0:03:56]} Nc5 {[%emt 0:02:56]} 21. Re1 {[%emt 0:02:14]} Rxe1+ {[%emt 0:08:48]} 22. Kxe1 {[%emt 0:00:05]} Be5 {[%emt 0:05:30]} 23. b3 {[%emt 0:03:16]} Ne6 {[%emt 0:02:19]} 24. Ne2 {[%emt 0:00:25]} Bd6 {[%emt 0:03:20]} 25. Kd2 {[%emt 0:01:34]} Rf6 {[%emt 0:01:47]} 26. Ke3 {[%emt 0:07:53]} Rf5 {[%emt 0:09:16]} 27. f4 {[%emt 0:03:15]} Rf8 {[%emt 0:04:41]} 28. Ng5 {[%emt 0:06:23]} Re8 {[%emt 0:02:00]} 29. Kf3 {[%emt 0:00:45]} Bc5 {[%emt 0:03:53]} 30. Nxe6 {[%emt 0:00:37]} Rxe6 {[%emt 0:00:02]} 31. d4 {[%emt 0:00:08]} Bb6 {[%emt 0:00:49]} 32. b4 {[%emt 0:00:40]} Kf7 {[%emt 0:01:10]} 33. a4 {[%emt 0:00:14]} a6 {[%emt 0:00:41]} 34. b5 {[%emt 0:02:53]} axb5 {[%emt 0:09:00]} 35. axb5 {[%emt 0:00:08]} c5 {[%emt 0:00:02]} 36. Nc3 {[%emt 0:00:24]} cxd4 {[%emt 0:00:58]} 37. Nxd5 {[%emt 0:00:05]} Bc5 {[%emt 0:00:30]} 38. Rd1 {[%emt 0:05:37]} Rd6 {[%emt 0:01:35]} 39. Ke4 {[%emt 0:00:16]} Rg6 {[%emt 0:00:24]} 40. Rg1 {[%emt 0:00:00]} d3 {[%emt 0:00:00]} 41. Rg2 {[%emt 0:15:06]} d2 {[%emt 0:02:46]} 42. Rxd2 {[%emt 0:00:26]} Rxg3 {[%emt 0:00:07]} 43. Rc2 {[%emt 0:00:45]} b6 {[%emt 0:10:03]} 44. Ra2 {[%emt 0:00:11]} Ke6 {[%emt 0:02:06]} 45. f5+ {[%emt 0:08:33]} Kd7 {[%emt 0:02:55]} 46. Nf4 {[%emt 0:08:45]} Rg4 {[%emt 0:02:19]} 47. Rg2 {[%emt 0:08:05]} Rxg2 {[%emt 0:03:14]} 48. Nxg2 {[%emt 0:00:06]} Kd6 {[%emt 0:04:07]} 49. Nf4 {[%emt 0:00:16]} Bf2 {[%emt 0:00:09]} 50. Nxh5 {[%emt 0:00:09]} Bxh4 {[%emt 0:00:04]} 51. Nxg7 {[%emt 0:00:06]} Kc5 {[%emt 0:00:12]} 52. Ne6+ {[%emt 0:00:36]} 1/2-1/2

[Event "72nd RUS-ch Higher League 2019"]
[Site "Yaroslavl"]
[Date "2019.06.28"]
[Round "2.20"]
[White "Salemgareev, Tagir"]
[Black "Sakaev, Konstantin"]
[Result "0-1"]
[ECO "B32"]
[WhiteElo "2412"]
[BlackElo "2584"]
[Annotator "ChessBase"]
[PlyCount "76"]
[EventDate "2019.06.27"]
[EventType "swiss"]
[EventCountry "RUS"]
[SourceTitle "playchess.com"]
[Source "ChessBase"]
[SourceQuality "1"]
[TimeControl "40/5400+30:1800+30"]

1. e4 {[%emt 0:00:00]} c5 {[%emt 0:00:00]} 2. Nf3 {[%emt 0:00:00]} Nc6 {[%emt 0:00:01]} 3. d4 {[%emt 0:01:10]} cxd4 {[%emt 0:00:06]} 4. Nxd4 {[%emt 0:00:04]} Qb6 {[%emt 0:00:05]} 5. Nb3 {[%emt 0:00:11]} Nf6 {[%emt 0:00:06]} 6. Nc3 {[%emt 0:00:04]} e6 {[%emt 0:00:05]} 7. a3 {[%emt 0:06:21]} a6 {[%emt 0:02:25]} 8. Be2 {[%emt 0:01:10]} d6 {[%emt 0:01:31]} 9. O-O {[%emt 0:00:55]} Be7 {[%emt 0:04:02]} 10. Be3 {[%emt 0:15:48]} Qc7 {[%emt 0:00:09]} 11. a4 {[%emt 0:00:41]} b6 {[%emt 0:02:38]} 12. f4 {[%emt 0:00:46]} O-O {[%emt 0:00:44]} 13. Bf3 {[%emt 0:00:57]} Rb8 {[%emt 0:05:56]} 14. Qe2 {[%emt 0:15:56]} Bb7 {[%emt 0:00:54]} 15. Kh1 {[%emt 0:02:33]} Nd7 {[%emt 0:10:11]} 16. Rfd1 {[%emt 0:17:00]} Na5 {[%emt 0:07:57]} 17. Nxa5 {[%emt 0:06:54]} bxa5 {[%emt 0:00:20]} 18. Rab1 {[%emt 0:00:34]} Rfe8 {[%emt 0:06:23]} 19. Qf2 {[%emt 0:03:02]} Bc6 {[%emt 0:02:02]} 20. b3 {[%emt 0:03:16]} Ba8 {[%emt 0:07:38]} 21. Na2 {[%emt 0:10:27]} Nf6 {[%emt 0:02:34]} 22. Rd4 {[%emt 0:00:24]} e5 {[%emt 0:02:16]} 23. fxe5 {[%emt 0:03:45]} dxe5 {[%emt 0:00:31]} 24. Rdd1 {[%emt 0:00:03]} Bxe4 {[%emt 0:02:41]} 25. Bxe4 {[%emt 0:02:10]} Nxe4 {[%emt 0:00:07]} 26. Qe2 {[%emt 0:00:03]} Qc6 {[%emt 0:05:22]} 27. Rd3 {[%emt 0:02:54]} f5 {[%emt 0:03:29]} 28. Rbd1 {[%emt 0:00:45]} Red8 {[%emt 0:06:36]} 29. Rxd8+ {[%emt 0:01:45]} Rxd8 {[%emt 0:00:53]} 30. Rxd8+ {[%emt 0:00:15]} Bxd8 {[%emt 0:00:05]} 31. Nc1 {[%emt 0:00:05]} Bc7 {[%emt 0:05:03]} 32. Nd3 {[%emt 0:00:48]} Nc3 {[%emt 0:04:19]} 33. Qd2 {[%emt 0:03:31]} Nd5 {[%emt 0:04:28]} 34. Bg1 {[%emt 0:00:08]} e4 {[%emt 0:00:37]} 35. Nc5 {[%emt 0:02:07]} e3 {[%emt 0:02:42]} 36. Bxe3 {[%emt 0:00:04]} Bb6 {[%emt 0:00:46]} 37. c4 {[%emt 0:00:07]} Nxe3 {[%emt 0:00:23]} 38. Nd7 {[%emt 0:00:04]} Bd4 {[%emt 0:02:32]} 0-1

[Event "72nd RUS-ch Higher League 2019"]
[Site "Yaroslavl"]
[Date "2019.06.28"]
[Round "2.21"]
[White "Bocharov, Ivan"]
[Black "Eraschenkov, Denis"]
[Result "1-0"]
[ECO "A28"]
[WhiteElo "2559"]
[BlackElo "2379"]
[Annotator "ChessBase"]
[PlyCount "63"]
[EventDate "2019.06.27"]
[EventType "swiss"]
[EventCountry "RUS"]
[SourceTitle "playchess.com"]
[Source "ChessBase"]
[SourceQuality "1"]
[TimeControl "40/5400+30:1800+30"]

1. c4 {[%emt 0:00:00]} e5 {[%emt 0:02:21]} 2. Nc3 {[%emt 0:00:00]} Nf6 {[%emt 0:00:16]} 3. Nf3 {[%emt 0:00:00]} Nc6 {[%emt 0:00:52]} 4. e3 {[%emt 0:00:07]} Bb4 {[%emt 0:03:05]} 5. Qc2 {[%emt 0:00:07]} Bxc3 {[%emt 0:00:26]} 6. bxc3 {[%emt 0:00:07]} O-O {[%emt 0:01:41]} 7. e4 {[%emt 0:01:21]} d6 {[%emt 0:01:45]} 8. g3 {[%emt 0:01:45]} h6 {[%emt 0:15:07]} 9. Rb1 {[%emt 0:01:32]} Nh7 {[%emt 0:18:12]} 10. Nh4 {[%emt 0:01:28]} Ng5 {[%emt 0:06:01]} 11. Bg2 {[%emt 0:01:14]} Rb8 {[%emt 0:10:04]} 12. O-O {[%emt 0:00:59]} Nh3+ {[%emt 0:09:44]} 13. Kh1 {[%emt 0:01:04]} Nf4 {[%emt 0:00:37]} 14. Bf3 {[%emt 0:00:48]} Qf6 {[%emt 0:03:42]} 15. Nf5 {[%emt 0:02:26]} Ng6 {[%emt 0:03:05]} 16. Bg2 {[%emt 0:01:13]} Nge7 {[%emt 0:00:24]} 17. Ne3 {[%emt 0:03:00]} Qg6 {[%emt 0:01:28]} 18. f4 {[%emt 0:03:22]} f5 {[%emt 0:03:58]} 19. d3 {[%emt 0:00:24]} Bd7 {[%emt 0:05:34]} 20. g4 {[%emt 0:02:14]} fxe4 {[%emt 0:03:50]} 21. Bxe4 {[%emt 0:00:32]} Qf6 {[%emt 0:01:28]} 22. f5 {[%emt 0:00:53]} Nd8 {[%emt 0:00:19]} 23. g5 {[%emt 0:04:17]} hxg5 {[%emt 0:02:41]} 24. Qg2 {[%emt 0:01:47]} Bc6 {[%emt 0:01:32]} 25. Ng4 {[%emt 0:01:33]} Qf7 {[%emt 0:00:06]} 26. Bxg5 {[%emt 0:00:24]} Bxe4 {[%emt 0:01:31]} 27. dxe4 {[%emt 0:00:08]} Ndc6 {[%emt 0:00:17]} 28. Bxe7 {[%emt 0:01:16]} Qxe7 {[%emt 0:00:17]} 29. f6 {[%emt 0:00:01]} Qd7 {[%emt 0:00:33]} 30. f7+ {[%emt 0:00:02]} Kh7 {[%emt 0:00:26]} 31. Qh3+ {[%emt 0:00:01]} Kg6 {[%emt 0:00:10]} 32. Rf3 {[%emt 0:00:56]} 1-0

[Event "72nd RUS-ch Higher League 2019"]
[Site "Yaroslavl"]
[Date "2019.06.28"]
[Round "2.24"]
[White "Ponkratov, Pavel"]
[Black "Vlasenko, Miroslav"]
[Result "1-0"]
[ECO "C10"]
[WhiteElo "2649"]
[BlackElo "2417"]
[Annotator "RC"]
[PlyCount "37"]
[EventDate "2019.06.27"]
[EventType "swiss"]
[EventCountry "RUS"]
[SourceTitle "playchess.com"]
[Source "ChessBase"]
[SourceQuality "1"]
[TimeControl "40/5400+30:1800+30"]

1. d4 {[%emt 0:00:00]} e6 {[%emt 0:00:00]} 2. e4 {[%emt 0:00:03]} d5 {[%emt 0:00:00]} 3. Nc3 {[%emt 0:00:04]} Nc6 {[%emt 0:00:00]} 4. e5 {[%emt 0:02:06]} Nge7 {[%emt 0:00:12]} 5. f4 {[%emt 0:03:38]} Nf5 {[%emt 0:01:49]} 6. Nf3 {[%emt 0:00:06]} h5 {[%emt 0:02:15]} 7. Ne2 {[%emt 0:06:01]} h4 {[%emt 0:01:55]} 8. c3 {[%emt 0:01:00]} Bd7 {[%emt 0:03:36]} 9. Neg1 {[%emt 0:04:58]} Na5 {[%emt 0:05:59]} 10. Bd3 {[%emt 0:02:15]} Be7 {[%emt 0:02:45]} 11. Ne2 {[%emt 0:00:09]} Nc4 {[%emt 0:02:38]} 12. Kf2 {[%emt 0:00:28]} c5 {[%emt 0:00:46]} 13. b3 {[%emt 0:00:20]} Na5 {[%emt 0:05:25]} 14. g4 {[%emt 0:03:02]} hxg3+ {[%emt 0:02:36]} 15. hxg3 {[%emt 0:00:04]} Rxh1 {[%emt 0:02:18]} 16. Qxh1 {[%emt 0:00:04]} cxd4 {[%emt 0:00:51]} 17. Bxf5 {[%emt 0:00:42]} exf5 {[%emt 0:00:19]} 18. Qh8+ {[%emt 0:00:07]} Bf8 {[%emt 0:00:05]} 19. Ba3 {[%emt 0:00:03]} 1-0

[Event "72nd RUS-ch Higher League 2019"]
[Site "Yaroslavl"]
[Date "2019.06.28"]
[Round "2.26"]
[White "Kobalia, Mikhail"]
[Black "Bykov, Oleg"]
[Result "1/2-1/2"]
[ECO "C11"]
[WhiteElo "2608"]
[BlackElo "2401"]
[Annotator "RC"]
[PlyCount "82"]
[EventDate "2019.06.27"]
[EventType "swiss"]
[EventCountry "RUS"]
[SourceTitle "playchess.com"]
[Source "ChessBase"]
[SourceQuality "1"]
[TimeControl "40/5400+30:1800+30"]

1. e4 {[%emt 0:00:00]} e6 {[%emt 0:00:00]} 2. d4 {[%emt 0:00:05]} d5 {[%emt 0:00:00]} 3. Nc3 {[%emt 0:00:29]} Nf6 {[%emt 0:00:00]} 4. e5 {[%emt 0:00:35]} Nfd7 {[%emt 0:00:00]} 5. f4 {[%emt 0:00:03]} c5 {[%emt 0:00:05]} 6. Nf3 {[%emt 0:00:04]} Nc6 {[%emt 0:00:06]} 7. Be3 {[%emt 0:00:59]} cxd4 {[%emt 0:00:26]} 8. Nxd4 {[%emt 0:00:05]} Bc5 {[%emt 0:00:27]} 9. Qd2 {[%emt 0:00:55]} O-O {[%emt 0:00:34]} 10. O-O-O {[%emt 0:00:11]} a6 {[%emt 0:01:02]} 11. Kb1 {[%emt 0:05:42]} Nxd4 {[%emt 0:02:14]} 12. Bxd4 {[%emt 0:00:04]} b5 {[%emt 0:00:46]} 13. h4 {[%emt 0:08:52]} b4 {[%emt 0:02:28]} 14. Na4 {[%emt 0:05:05]} Bxd4 {[%emt 0:00:18]} 15. Qxd4 {[%emt 0:00:05]} Qa5 {[%emt 0:08:02]} 16. b3 {[%emt 0:02:10]} Bb7 {[%emt 0:00:36]} 17. h5 {[%emt 0:11:03]} Bc6 {[%emt 0:13:08]} 18. Nb2 {[%emt 0:00:05]} Bb5 {[%emt 0:15:01]} 19. f5 {[%emt 0:05:45]} Rfc8 {[%emt 0:07:38]} 20. Bd3 {[%emt 0:10:16]} Qc7 {[%emt 0:03:05]} 21. fxe6 {[%emt 0:01:38]} fxe6 {[%emt 0:00:48]} 22. Qg4 {[%emt 0:00:16]} Nc5 {[%emt 0:12:26]} 23. h6 {[%emt 0:02:31]} g6 {[%emt 0:16:57]} 24. Qxb4 {[%emt 0:01:33]} Qxe5 {[%emt 0:02:55]} 25. Rde1 {[%emt 0:01:39]} Qf6 {[%emt 0:03:17]} 26. Qd2 {[%emt 0:15:31]} Rf8 {[%emt 0:05:33]} 27. Qe3 {[%emt 0:02:18]} Rac8 {[%emt 0:00:25]} 28. Rhf1 {[%emt 0:01:32]} Qe7 {[%emt 0:02:10]} 29. Rxf8+ {[%emt 0:09:05]} Rxf8 {[%emt 0:00:16]} 30. Qe5 {[%emt 0:00:02]} Qf6 {[%emt 0:01:32]} 31. Qd6 {[%emt 0:01:03]} Bxd3 {[%emt 0:00:45]} 32. cxd3 {[%emt 0:02:54]} Qd4 {[%emt 0:00:41]} 33. Rc1 {[%emt 0:01:14]} Rf2 {[%emt 0:02:11]} 34. Qd8+ {[%emt 0:00:21]} Kf7 {[%emt 0:00:17]} 35. Qc7+ {[%emt 0:00:02]} Ke8 {[%emt 0:00:29]} 36. Qb8+ {[%emt 0:01:08]} Ke7 {[%emt 0:00:46]} 37. Qa7+ {[%emt 0:00:12]} Kd6 {[%emt 0:00:26]} 38. Qb8+ {[%emt 0:06:10]} Ke7 {[%emt 0:00:12]} 39. Qa7+ {[%emt 0:00:20]} Kd6 {[%emt 0:00:05]} 40. Qb8+ {[%emt 0:00:00]} Ke7 {[%emt 0:00:00]} 41. Qa7+ {[%emt 0:02:54]} Kd6 {[%emt 0:03:45]} 1/2-1/2

[Event "72nd RUS-ch Higher League 2019"]
[Site "Yaroslavl"]
[Date "2019.06.28"]
[Round "2.27"]
[White "Belozerov, Andrei"]
[Black "Truskavetsky, Alexandr"]
[Result "1/2-1/2"]
[ECO "B15"]
[WhiteElo "2533"]
[BlackElo "2398"]
[Annotator "ChessBase"]
[PlyCount "80"]
[EventDate "2019.06.27"]
[EventType "swiss"]
[EventCountry "RUS"]
[SourceTitle "playchess.com"]
[Source "ChessBase"]
[SourceQuality "1"]
[TimeControl "40/5400+30:1800+30"]

1. e4 {[%emt 0:03:16]} c6 {[%emt 0:01:10]} 2. d4 {[%emt 0:00:18]} d5 {[%emt 0:00:06]} 3. Nd2 {[%emt 0:00:08]} dxe4 {[%emt 0:00:27]} 4. Nxe4 {[%emt 0:00:09]} Nf6 {[%emt 0:00:43]} 5. Nxf6+ {[%emt 0:00:09]} exf6 {[%emt 0:00:10]} 6. c3 {[%emt 0:00:09]} Bd6 {[%emt 0:00:16]} 7. Bd3 {[%emt 0:00:10]} O-O {[%emt 0:00:13]} 8. Qc2 {[%emt 0:00:07]} Re8+ {[%emt 0:00:21]} 9. Ne2 {[%emt 0:00:08]} g6 {[%emt 0:03:40]} 10. h4 {[%emt 0:00:12]} Be6 {[%emt 0:01:31]} 11. h5 {[%emt 0:04:17]} f5 {[%emt 0:02:52]} 12. hxg6 {[%emt 0:01:21]} fxg6 {[%emt 0:00:05]} 13. Bh6 {[%emt 0:00:56]} Qf6 {[%emt 0:04:57]} 14. O-O-O {[%emt 0:09:17]} Nd7 {[%emt 0:01:35]} 15. Nf4 {[%emt 0:01:44]} Bf7 {[%emt 0:11:27]} 16. Kb1 {[%emt 0:00:46]} b5 {[%emt 0:17:07]} 17. Rdg1 {[%emt 0:07:46]} b4 {[%emt 0:14:42]} 18. g4 {[%emt 0:03:02]} Bxf4 {[%emt 0:05:01]} 19. gxf5 {[%emt 0:12:17]} Bxh6 {[%emt 0:00:24]} 20. Rxh6 {[%emt 0:00:10]} Nf8 {[%emt 0:05:54]} 21. fxg6 {[%emt 0:03:52]} hxg6 {[%emt 0:01:02]} 22. Bxg6 {[%emt 0:00:25]} Re1+ {[%emt 0:02:34]} 23. Rxe1 {[%emt 0:01:05]} Bxg6 {[%emt 0:00:54]} 24. Ka1 {[%emt 0:03:03]} Kg7 {[%emt 0:03:29]} 25. Qd2 {[%emt 0:01:05]} bxc3 {[%emt 0:01:48]} 26. bxc3 {[%emt 0:00:10]} c5 {[%emt 0:00:51]} 27. Rhh1 {[%emt 0:04:37]} Rd8 {[%emt 0:06:23]} 28. Qh6+ {[%emt 0:05:08]} Kf7 {[%emt 0:04:47]} 29. Rh4 {[%emt 0:02:56]} Ne6 {[%emt 0:01:01]} 30. Rg4 {[%emt 0:03:30]} cxd4 {[%emt 0:01:03]} 31. Rxg6 {[%emt 0:08:31]} Qxg6 {[%emt 0:00:05]} 32. Qxg6+ {[%emt 0:00:07]} Kxg6 {[%emt 0:00:05]} 33. Rxe6+ {[%emt 0:00:05]} Kf5 {[%emt 0:00:05]} 34. Re1 {[%emt 0:00:09]} dxc3 {[%emt 0:02:40]} 35. Rc1 {[%emt 0:00:22]} Rc8 {[%emt 0:01:36]} 36. Kb1 {[%emt 0:00:47]} Rb8+ {[%emt 0:00:11]} 37. Kc2 {[%emt 0:00:26]} Rb2+ {[%emt 0:00:05]} 38. Kxc3 {[%emt 0:00:08]} Rxa2 {[%emt 0:00:05]} 39. Rc2 {[%emt 0:00:16]} Rxc2+ {[%emt 0:00:10]} 40. Kxc2 {[%emt 0:00:00]} Kf4 {[%emt 0:00:00]} 1/2-1/2